fUSD/lending_fUSD_20250716
["ID","MTS","AMOUNT","RATE_DAILY","PERIOD"]
[372512599,1752666638953,-516.65,0.00021917,2]
[372512601,1752666638963,-462.56377332,0.00021917,2]
[372512603,1752666638972,-460.0,0.00021917,2]
[372512604,1752666638982,-1060.45,0.00021917,2]
[372512607,1752666638991,-460.0,0.00021917,2]
[372512608,1752666639001,-536.55228092,0.00021917,2]
[372512611,1752666639012,-460.0,0.00021917,2]
[372512613,1752666639022,-460.0,0.00021917,2]
[372512614,1752666639032,-736.8,0.00021917,2]
[372512617,1752666639042,-641.84,0.00021917,2]
[372512619,1752666639052,-545.75,0.00021917,2]
[372512621,1752666639061,-2604.94,0.00021917,2]
[372512623,1752666639071,-460.0,0.00021917,2]
[372512625,1752666639080,-460.0,0.00021917,2]
[372512627,1752666639090,-460.0,0.00021917,2]
[372512629,1752666639099,-460.0,0.00021917,2]
[372512630,1752666639108,-696.13,0.00021917,2]
[372512633,1752666639118,-460.0,0.00021917,2]
[372512635,1752666639127,-935.92,0.00021917,2]
[372512636,1752666639137,-460.0,0.00021917,2]
[372512639,1752666639147,-460.0,0.00021917,2]
[372512641,1752666639156,-460.0,0.00021917,2]
[372512643,1752666639166,-302.54774229,0.00021917,2]
[372512645,1752666639176,-1031.63,0.00021917,2]
[372512646,1752666639185,-497.88679973,0.00021917,2]
[372512649,1752666639195,-62.17313114,0.00021917,2]
[372512651,1752666639212,-397.82686886,0.00021917,2]
[372512653,1752666639221,-252.24456507,0.00021917,2]
[372512655,1752666639231,-460.0,0.00021917,2]
[372512658,1752666639241,-103.72856607,0.00021917,2]
[372512834,1752666641070,-5003.05914138,0.00021917,2]
[372512837,1752666641082,-5306.78045015,0.00021917,2]
[372512840,1752666641106,-1429.4080305,0.00021917,2]
[372512843,1752666641125,-365.4294,0.00021917,2]
[372512908,1752666641747,-515.35618841,0.00021917,2]
[372512910,1752666641759,-4802.51900655,0.00021917,2]
[372512912,1752666641770,-4197.58099345,0.00021917,2]
[372512915,1752666641786,-958.92618696,0.00021917,2]
[372512917,1752666641797,-920.0,0.00021917,2]
[372512929,1752666641903,-1506.91615001,0.00021917,2]
[372513061,1752666643261,-3469.04740131,0.00021917,2]
[372513063,1752666643273,-24785.0380788,0.00021917,2]
[372513093,1752666643553,-4876.02657978,0.00021917,2]
[372513096,1752666643576,-661.49310391,0.00021917,2]
[372513415,1752666646667,-262.26237699,0.00021917,2]
[372513418,1752666646684,-16643.66447,0.00021917,2]
[372513420,1752666646695,-54785.0088,0.00021917,2]
[372513422,1752666646707,-519.12614236,0.00021917,2]
[372513425,1752666646719,-5822.99576774,0.00021917,2]
[372513427,1752666646731,-993.47,0.00021917,2]
[372513429,1752666646743,-452.76003,0.00021917,2]
[372513452,1752666647035,-12070.41557084,0.00021917,2]
[372513656,1752666784265,196.0,0.0003013,120]
[372513657,1752666786045,1773.29993583,0.0003013,120]
[372513660,1752666865204,2000.0,0.0003013,120]
[372513661,1752666890284,2000.0,0.00030135,120]
[372513664,1752666907685,2000.0,0.0003013,120]
[372513665,1752666963840,2000.0,0.0003013,120]
[372513697,1752667589302,517.0,0.00017165,2]
[372513698,1752667592112,-173.98,0.00019178,2]
[372513699,1752667592135,-1000.0,0.00019982,2]
[372513700,1752667592158,-338.0,0.00019999,2]
[372513701,1752667592179,-2650.59191588,0.0002,2]
[372513740,1752667741301,221.0,0.0003013,120]
[372513741,1752667743448,323.0,0.0003013,120]
[372513742,1752667745519,159.86,0.00013699,2]
[372513743,1752667796993,1046.0,0.0003013,120]
[372513758,1752667832430,-160.68150615,0.00019959,2]
[372513759,1752667832441,-7349.40808412,0.0002,2]
[372513760,1752667832451,-195.31580478,0.00020059,2]
[372513761,1752667832460,-300.0,0.00020158,2]
[372513762,1752667832470,-500.0,0.00020159,2]
[372513763,1752667832480,-800.0,0.00020159,2]
[372513764,1752667832489,-900.0,0.00020159,2]
[372513765,1752667832500,-4934.93,0.00020341,2]
[372513766,1752667832510,-817.0,0.00020385,2]
[372513767,1752667832520,-2989.57,0.00020391,2]
[372513768,1752667832530,-23900.0,0.00020426,2]
[372513769,1752667832540,-204.66,0.00020493,2]
[372513770,1752667832550,-1000.0,0.00020542,2]
[372513771,1752667832560,-150.0,0.00020542,2]
[372513772,1752667832570,-160.5,0.00020731,2]
[372513773,1752667832579,-462.74,0.00020731,2]
[372513774,1752667832589,-195.31580478,0.00020814,2]
[372513775,1752667832599,-1000.0,0.00020857,2]
[372513776,1752667832609,-1100.0,0.00020899,2]
[372513777,1752667832619,-5879.90665079,0.000209,2]
[372513778,1752667832643,-5004.5635355,0.000209,2]
[372513779,1752667832678,-405.7599,0.000209,2]
[372513980,1752667840420,-295.234,0.000209,2]
[372514288,1752667843410,-1524.19097461,0.000209,2]
[372514313,1752667843782,-462.50799068,0.000209,2]
[372514573,1752667846312,-2066.7415,0.000209,2]
[372514654,1752667847101,-1313.16338959,0.000209,2]
[372515125,1752667858763,510.0,0.00017165,2]
[372515150,1752668357161,171.06,0.0001653,2]
[372515228,1752668707371,4838.42268,0.000211,30]
[372515229,1752668707394,5000.0,0.000211,30]
[372515230,1752668707419,5000.0,0.000211,30]
[372515231,1752668707441,5000.0,0.000211,30]
[372515232,1752668707464,5000.0,0.000211,30]
[372515233,1752668707486,5000.0,0.000211,30]
[372515234,1752668707510,5000.0,0.000211,30]
[372515235,1752668707533,5000.0,0.000211,30]
[372515236,1752668707557,146.716873,0.000211,30]
[372515237,1752668725486,2891.47276274,0.000175,2]
[372515238,1752668725507,1027.7678418,0.000175,2]
[372515257,1752668883376,156.0,0.0003013,120]
[372515258,1752668885531,697.0,0.0003013,120]
[372515259,1752668919918,13972.2321582,0.000151,2]
[372515260,1752668919941,497.4178418,0.000151,2]
[372515261,1752668920412,187.83754222,0.000154,2]
[372515263,1752668936684,-11000.0,0.00018,2]
[372515264,1752668943667,342.0,0.0003013,120]
[372515265,1752668945108,-398.88801812,0.00018,2]
[372515268,1752668997144,492.57936946,0.0003013,120]
[372515276,1752669031611,-240.554441,0.000179,2]
[372515277,1752669031622,-1000.0,0.00017905,2]
[372515278,1752669031632,-250.0,0.00017905,2]
[372515279,1752669031642,-300.0,0.00017999,2]
[372515280,1752669031652,-550.0,0.00017999,2]
[372515281,1752669031662,-1200.0,0.00017999,2]
[372515282,1752669031672,-17553.33768025,0.00018,2]
[372515283,1752669031690,-1707.42218451,0.00018,2]
[372515284,1752669031702,-420.0,0.00018,2]
[372515285,1752669031713,-51033.4183943,0.00018,2]
[372515286,1752669031723,-2208.31159472,0.00018,2]
[372515287,1752669031732,-133070.54094831,0.00018,2]
[372515288,1752669031747,-507.68216229,0.00018,2]
[372515289,1752669031759,-500.0,0.00018,2]
[372515290,1752669031770,-500.0,0.00018,2]
[372515291,1752669031780,-500.0,0.00018,2]
[372515292,1752669031790,-160.27047093,0.00018,2]
[372515293,1752669031800,-500.0,0.00018,2]
[372515294,1752669031810,-500.0,0.00018,2]
[372515295,1752669031819,-500.0,0.00018,2]
[372515296,1752669031829,-500.0,0.00018,2]
[372515297,1752669031839,-501.40327212,0.00018,2]
[372515298,1752669031849,-482.92576506,0.00018,2]
[372515299,1752669031864,-500.0,0.00018,2]
[372515300,1752669031874,-500.0,0.00018,2]
[372515301,1752669031885,-500.0,0.00018,2]
[372515302,1752669031895,-503.10552444,0.00018,2]
[372515304,1752669031906,-404.16346783,0.00018,2]
[372515306,1752669031918,-101.10979145,0.00018,2]
[372515308,1752669031928,-516.0,0.0001852,2]
[372515310,1752669031938,-504.53778829,0.00018548,2]
[372515312,1752669031948,-1000.0,0.00018548,2]
[372515314,1752669031959,-344.589417,0.00018548,2]
[372515316,1752669031968,-1000.0,0.00018548,2]
[372515318,1752669031978,-502.5337812,0.00018548,2]
[372515320,1752669031988,-481.98125529,0.00018548,2]
[372515322,1752669031998,-1000.0,0.00018548,2]
[372515324,1752669032008,-350.0,0.00019079,2]
[372515326,1752669032017,-1500.0,0.00019096,2]
[372515328,1752669032026,-500.0,0.00019096,2]
[372515330,1752669032036,-1500.0,0.00019096,2]
[372515332,1752669032045,-2000.0,0.00019644,2]
[372515334,1752669032055,-2000.0,0.00019644,2]
[372515336,1752669032064,-1000.0,0.0001969,2]
[372515338,1752669032074,-250.0,0.0001969,2]
[372515340,1752669032083,-848.9168636,0.000199,2]
[372515341,1752669032093,-366.89,0.0001995,2]
[372515343,1752669032102,-47562.82705424,0.0002,2]
[372515345,1752669032112,-1000.0,0.0002,7]
[372515346,1752669032121,-676.37,0.00020009,2]
[372515347,1752669032130,-196.86121498,0.00020058,2]
[372515348,1752669032139,-500.0,0.00020159,2]
[372515349,1752669032149,-1100.0,0.00020159,2]
[372515350,1752669032158,-1000.0,0.00020159,2]
[372515351,1752669032167,-2500.0,0.00020192,2]
[372515352,1752669032179,-2500.0,0.00020192,2]
[372515353,1752669032193,-370.19,0.00020411,2]
[372515354,1752669032203,-1000.0,0.00020411,2]
[372515355,1752669032212,-163.72,0.00020411,2]
[372515357,1752669032222,-357.08,0.00020411,2]
[372515359,1752669032233,-161.03,0.00020479,2]
[372515361,1752669032243,-2128.08481,0.0002069,2]
[372515363,1752669032254,-18016.17,0.00020707,2]
[372515365,1752669032263,-3000.0,0.0002074,2]
[372515367,1752669032273,-3000.0,0.0002074,2]
[372515369,1752669032283,-1784.69918295,0.00020789,2]
[372515371,1752669032293,-296.74586717,0.00020889,2]
[372515373,1752669032303,-19640.27124762,0.0002089,2]
[372515375,1752669032313,-10553.25329135,0.000209,2]
[372515382,1752669032379,-1958.84225498,0.000209,2]
[372515384,1752669032391,-334.12267601,0.000209,2]
[372515387,1752669032409,-12572.11372369,0.000209,2]
[372515402,1752669038399,-7629.6001128,0.000209,2]
[372515404,1752669038409,-1784.6991829,0.00020934,2]
[372515406,1752669038419,-634.0,0.00020959,2]
[372515408,1752669038428,-166.12,0.00020976,2]
[372515410,1752669038440,-506.0,0.00021,2]
[372515412,1752669038449,-88.918405,0.00021,2]
[372515417,1752669038488,-61.081595,0.00021,2]
[372515419,1752669038498,-2967.60644127,0.00021,2]
[372515421,1752669038508,-1784.6991829,0.00021078,2]
[372515423,1752669038517,-151.0,0.0002111,2]
[372515425,1752669038526,-151.0,0.0002111,2]
[372515427,1752669038536,-151.0,0.0002111,2]
[372515429,1752669038546,-151.0,0.0002111,2]
[372515431,1752669038555,-151.0,0.0002111,2]
[372515433,1752669038564,-151.0,0.0002111,2]
[372515435,1752669038574,-151.0,0.0002111,2]
[372515437,1752669038584,-151.0,0.0002111,2]
[372515439,1752669038593,-4838.42268,0.0002111,29]
[372515441,1752669038603,-5000.0,0.0002111,29]
[372515443,1752669038612,-5000.0,0.0002111,29]
[372515445,1752669038622,-5000.0,0.0002111,29]
[372515447,1752669038632,-5000.0,0.0002111,29]
[372515449,1752669038642,-5000.0,0.0002111,29]
[372515451,1752669038652,-5000.0,0.0002111,29]
[372515453,1752669038661,-5000.0,0.0002111,29]
[372515455,1752669038670,-5000.0,0.0002111,29]
[372515457,1752669038682,-4838.42268,0.0002111,29]
[372515459,1752669038692,-5000.0,0.0002111,29]
[372515460,1752669038702,-5000.0,0.0002111,29]
[372515463,1752669038711,-5000.0,0.0002111,29]
[372515464,1752669038728,-5000.0,0.0002111,29]
[372515467,1752669038738,-5000.0,0.0002111,29]
[372515469,1752669038748,-4039.81539744,0.0002111,29]
[372515471,1752669038758,-250.0,0.00021112,2]
[372515472,1752669038768,-167.75,0.00021125,2]
[372515475,1752669038777,-207.4,0.00021147,2]
[372515477,1752669038787,-3385.25673084,0.00021147,2]
[372515479,1752669038798,-163.72,0.00021177,2]
[372515481,1752669038807,-1784.6991829,0.00021223,2]
[372515482,1752669038817,-1100.0,0.00021255,2]
[372515484,1752669038827,-1000.0,0.00021255,2]
[372515486,1752669038836,-1446.96256543,0.00021288,2]
[372515488,1752669038846,-3500.0,0.00021288,2]
[372515490,1752669038856,-1784.6991829,0.00021368,2]
[372515492,1752669038866,-370.19,0.00021432,2]
[372515495,1752669038878,-684.147989,0.00021478,8]
[372515497,1752669038888,-1784.6991829,0.00021512,2]
[372515499,1752669038898,-1592.69912,0.00021596,30]
[372515501,1752669038907,-168.0,0.00021618,2]
[372515503,1752669038917,-1784.6991829,0.00021657,2]
[372515506,1752669038938,-2128.08482,0.0002169,2]
[372515508,1752669038948,-3165.3,0.00021754,2]
[372515510,1752669038958,-1784.6991829,0.00021802,2]
[372515512,1752669038967,-846.88358953,0.00021815,2]
[372515514,1752669038978,-5000.0,0.00021817,2]
[372515516,1752669038989,-281.43217009,0.00021817,2]
[372515518,1752669038998,-153.96755628,0.00021817,2]
[372515520,1752669039008,-616.03821044,0.00021836,2]
[372515522,1752669039018,-846.88358948,0.00021846,2]
[372515524,1752669039028,-846.88358948,0.00021876,2]
[372515526,1752669039038,-6000.0,0.000219,2]
[372515528,1752669039048,-1276.28,0.000219,2]
[372515530,1752669039059,-2018.524215,0.000219,2]
[372515532,1752669039069,-2000.0,0.000219,2]
[372515534,1752669039079,-151.0,0.000219,2]
[372515536,1752669039088,-151.0,0.000219,2]
[372515538,1752669039098,-151.0,0.000219,2]
[372515540,1752669039108,-151.0,0.000219,2]
[372515542,1752669039117,-3165.25,0.000219,2]
[372515544,1752669039127,-151.0,0.000219,2]
[372515546,1752669039137,-199.92758039,0.00021907,2]
[372515548,1752669039147,-846.88358948,0.00021907,2]
[372515550,1752669039156,-3935.2863162,0.00021908,2]
[372515552,1752669039166,-151.0,0.00021915,2]
[372515554,1752669039176,-151.0,0.00021915,2]
[372515556,1752669039193,-151.0,0.00021915,2]
[372515558,1752669039202,-151.0,0.00021915,2]
[372515561,1752669039212,-21778.52057101,0.00021916,2]
[372515562,1752669039222,-151.0,0.00021916,2]
[372515564,1752669039233,-151.0,0.00021916,2]
[372515566,1752669039243,-234.655052,0.00021916,2]
[372515569,1752669039253,-151.0,0.00021916,2]
[372515571,1752669039262,-236.422034,0.00021916,2]
[372515573,1752669039272,-151.0,0.00021916,2]
[372515575,1752669039282,-151.0,0.00021916,2]
[372515577,1752669039293,-151.884192,0.00021916,2]
[372515579,1752669039303,-151.809833,0.00021916,2]
[372515581,1752669039314,-151.0,0.00021916,2]
[372515583,1752669039324,-632.305712,0.00021916,2]
[372515585,1752669039335,-632.305712,0.00021916,2]
[372515587,1752669039344,-151.0,0.00021916,2]
[372515589,1752669039355,-151.0,0.00021916,2]
[372515591,1752669039366,-151.0,0.00021916,2]
[372515593,1752669039376,-151.0,0.00021916,2]
[372515595,1752669039387,-152.372545,0.00021916,2]
[372515597,1752669039399,-151.0,0.00021916,2]
[372515599,1752669039410,-254.175208,0.00021916,2]
[372515601,1752669039422,-332.202685,0.00021916,2]
[372515603,1752669039435,-254.175208,0.00021916,2]
[372515605,1752669039446,-151.0,0.00021916,2]
[372515607,1752669039457,-332.202685,0.00021916,2]
[372515609,1752669039467,-151.0,0.00021916,2]
[372515611,1752669039477,-151.0,0.00021916,2]
[372515614,1752669039488,-151.858535,0.00021916,2]
[372515616,1752669039498,-151.0,0.00021916,2]
[372515618,1752669039508,-152.1895,0.00021916,2]
[372515620,1752669039519,-151.0,0.00021916,2]
[372515622,1752669039529,-151.0,0.00021916,2]
[372515624,1752669039538,-151.0,0.00021916,2]
[372515628,1752669039548,-151.0,0.00021916,2]
[372515631,1752669039558,-151.0,0.00021916,2]
[372515633,1752669039568,-151.0,0.00021916,2]
[372515636,1752669039578,-155.829971,0.00021916,2]
[372515638,1752669039588,-151.0,0.00021916,2]
[372515639,1752669039598,-151.0,0.00021916,2]
[372515641,1752669039608,-151.0,0.00021916,2]
[372515644,1752669039618,-154.365874,0.00021916,2]
[372515645,1752669039628,-151.0,0.00021916,2]
[372515647,1752669039640,-328.20375112,0.00021916,2]
[372515650,1752669039650,-200.0,0.00021916,2]
[372515652,1752669039660,-200.0,0.00021916,2]
[372515654,1752669039674,-200.0,0.00021916,2]
[372515656,1752669039686,-200.0,0.00021916,2]
[372515658,1752669039704,-200.0,0.00021916,2]
[372515660,1752669039714,-200.0,0.00021916,2]
[372515662,1752669039723,-200.0,0.00021916,2]
[372515663,1752669039740,-200.0,0.00021916,2]
[372515664,1752669039749,-200.0,0.00021916,2]
[372515665,1752669039759,-200.0,0.00021916,2]
[372515666,1752669039768,-200.0,0.00021916,2]
[372515667,1752669039778,-200.0,0.00021916,2]
[372515668,1752669039787,-200.0,0.00021916,2]
[372515669,1752669039796,-200.0,0.00021916,2]
[372515670,1752669039806,-200.0,0.00021916,2]
[372515671,1752669039815,-200.0,0.00021916,2]
[372515672,1752669039825,-200.0,0.00021916,2]
[372515674,1752669039835,-200.0,0.00021916,2]
[372515676,1752669039845,-200.0,0.00021916,2]
[372515678,1752669039855,-243.69856,0.00021916,2]
[372515680,1752669039864,-151.0,0.00021916,2]
[372515682,1752669039875,-151.679541,0.00021916,2]
[372515684,1752669039885,-151.0,0.00021916,2]
[372515686,1752669039895,-151.0,0.00021916,2]
[372515688,1752669039905,-151.0,0.00021916,2]
[372515690,1752669039915,-151.0,0.00021916,2]
[372515692,1752669039925,-1916.694268,0.00021916,2]
[372515694,1752669039936,-1916.694268,0.00021916,2]
[372515696,1752669039945,-1916.694268,0.00021916,2]
[372515698,1752669039955,-1916.694268,0.00021916,2]
[372515700,1752669039964,-151.0,0.00021916,2]
[372515702,1752669039975,-151.0,0.00021916,2]
[372515703,1752669039986,-363.463443,0.00021916,2]
[372515704,1752669039998,-363.463443,0.00021916,2]
[372515705,1752669040008,-151.0,0.00021916,2]
[372515706,1752669040017,-151.0,0.00021916,2]
[372515707,1752669040027,-151.0,0.00021916,2]
[372515708,1752669040036,-151.0,0.00021916,2]
[372515709,1752669040046,-151.0,0.00021916,2]
[372515710,1752669040056,-256.960921,0.00021916,2]
[372515711,1752669040066,-151.0,0.00021916,2]
[372515712,1752669040076,-151.0,0.00021916,2]
[372515713,1752669040086,-151.0,0.00021916,2]
[372515714,1752669040095,-151.0,0.00021916,2]
[372515715,1752669040106,-151.0,0.00021916,2]
[372515716,1752669040116,-151.0,0.00021916,2]
[372515717,1752669040126,-151.0,0.00021916,2]
[372515718,1752669040136,-151.0,0.00021916,2]
[372515719,1752669040146,-151.0,0.00021916,2]
[372515720,1752669040155,-151.0,0.00021916,2]
[372515721,1752669040165,-151.0,0.00021916,2]
[372515722,1752669040175,-150.0,0.00021916,2]
[372515723,1752669040187,-221.565543,0.00021916,2]
[372515725,1752669040198,-221.565543,0.00021916,2]
[372515727,1752669040207,-221.565543,0.00021916,2]
[372515729,1752669040217,-221.565543,0.00021916,2]
[372515731,1752669040231,-151.0,0.00021916,2]
[372515733,1752669040241,-151.0,0.00021916,2]
[372515735,1752669040251,-151.0,0.00021916,2]
[372515737,1752669040261,-151.0,0.00021916,2]
[372515739,1752669040270,-151.0,0.00021916,2]
[372515741,1752669040281,-7046.64,0.00021916,2]
[372515743,1752669040290,-10558.82711865,0.00021917,2]
[372515745,1752669040300,-151.0,0.00021917,2]
[372515747,1752669040310,-151.0,0.00021917,2]
[372515749,1752669040320,-267.75687583,0.00021917,2]
[372515751,1752669040330,-152.09289653,0.00021917,2]
[372515753,1752669040339,-151.0,0.00021917,2]
[372515755,1752669040349,-151.0,0.00021917,2]
[372515757,1752669040359,-151.0,0.00021917,2]
[372515759,1752669040369,-151.0,0.00021917,2]
[372515761,1752669040379,-151.0,0.00021917,2]
[372515763,1752669040392,-151.0,0.00021917,2]
[372515765,1752669040401,-151.0,0.00021917,2]
[372515767,1752669040411,-151.0,0.00021917,2]
[372515769,1752669040421,-151.0,0.00021917,2]
[372515772,1752669040432,-151.0,0.00021917,2]
[372515773,1752669040441,-151.0,0.00021917,2]
[372515775,1752669040451,-151.0,0.00021917,2]
[372515777,1752669040461,-151.0,0.00021917,2]
[372515780,1752669040471,-151.0,0.00021917,2]
[372515782,1752669040481,-194.264131,0.00021917,2]
[372515783,1752669040491,-151.96787,0.00021917,2]
[372515786,1752669040502,-151.735375,0.00021917,2]
[372515788,1752669040513,-151.0,0.00021917,2]
[372515790,1752669040523,-151.0,0.00021917,2]
[372515792,1752669040532,-151.0,0.00021917,2]
[372515794,1752669040542,-151.0,0.00021917,2]
[372515796,1752669040551,-151.0,0.00021917,2]
[372515798,1752669040560,-151.0,0.00021917,2]
[372515800,1752669040571,-151.0,0.00021917,2]
[372515802,1752669040581,-151.0,0.00021917,2]
[372515803,1752669040593,-151.0,0.00021917,2]
[372515805,1752669040602,-151.0,0.00021917,2]
[372515808,1752669040613,-151.0,0.00021917,2]
[372515810,1752669040623,-151.0,0.00021917,2]
[372515812,1752669040633,-151.0,0.00021917,2]
[372515814,1752669040643,-151.0,0.00021917,2]
[372515815,1752669040652,-151.0,0.00021917,2]
[372515818,1752669040662,-151.0,0.00021917,2]
[372515820,1752669040672,-151.0,0.00021917,2]
[372515821,1752669040684,-267.727018,0.00021917,2]
[372515824,1752669040694,-11442.80858122,0.00021917,2]
[372515826,1752669040703,-151.0,0.00021917,2]
[372515828,1752669040712,-151.0,0.00021917,2]
[372515830,1752669040724,-151.0,0.00021917,2]
[372515832,1752669040733,-151.0,0.00021917,2]
[372515834,1752669040742,-151.0,0.00021917,2]
[372515835,1752669040752,-151.0,0.00021917,2]
[372515837,1752669040762,-152.96794,0.00021917,2]
[372515840,1752669040771,-151.0,0.00021917,2]
[372515842,1752669040786,-151.0,0.00021917,2]
[372515844,1752669040796,-151.0,0.00021917,2]
[372515846,1752669040806,-152.516922,0.00021917,2]
[372515848,1752669040816,-151.0,0.00021917,2]
[372515851,1752669040829,-273.259868,0.00021917,2]
[372515853,1752669040838,-151.0,0.00021917,2]
[372515855,1752669040848,-151.0,0.00021917,2]
[372515857,1752669040858,-151.0,0.00021917,2]
[372515859,1752669040867,-151.141842,0.00021917,2]
[372515861,1752669040878,-151.0,0.00021917,2]
[372515863,1752669040887,-151.0,0.00021917,2]
[372515865,1752669040898,-151.0,0.00021917,2]
[372515867,1752669040908,-151.0,0.00021917,2]
[372515869,1752669040919,-151.0,0.00021917,2]
[372515872,1752669040929,-151.0,0.00021917,2]
[372515874,1752669040940,-151.0,0.00021917,2]
[372515875,1752669040950,-151.0,0.00021917,2]
[372515878,1752669040960,-151.0,0.00021917,2]
[372515880,1752669040969,-151.0,0.00021917,2]
[372515882,1752669040979,-181.113091,0.00021917,2]
[372515884,1752669040988,-151.0,0.00021917,2]
[372515886,1752669040998,-181.113091,0.00021917,2]
[372515888,1752669041008,-151.0,0.00021917,2]
[372515890,1752669041017,-181.113091,0.00021917,2]
[372515892,1752669041028,-181.113091,0.00021917,2]
[372515894,1752669041038,-181.113091,0.00021917,2]
[372515896,1752669041048,-180.788056,0.00021917,2]
[372515898,1752669041058,-181.113091,0.00021917,2]
[372515900,1752669041067,-181.113091,0.00021917,2]
[372515902,1752669041077,-181.113091,0.00021917,2]
[372515904,1752669041087,-181.113091,0.00021917,2]
[372515906,1752669041097,-181.113091,0.00021917,2]
[372515908,1752669041106,-181.113091,0.00021917,2]
[372515910,1752669041116,-181.113091,0.00021917,2]
[372515912,1752669041125,-181.113089,0.00021917,2]
[372515914,1752669041135,-151.0,0.00021917,2]
[372515916,1752669041145,-151.0,0.00021917,2]
[372515918,1752669041154,-151.0,0.00021917,2]
[372515920,1752669041165,-151.0,0.00021917,2]
[372515922,1752669041174,-151.0,0.00021917,2]
[372515924,1752669041186,-151.0,0.00021917,2]
[372515927,1752669041202,-259.516956,0.00021917,2]
[372515929,1752669041212,-151.0,0.00021917,2]
[372515931,1752669041222,-151.0,0.00021917,2]
[372515933,1752669041233,-151.0,0.00021917,2]
[372515935,1752669041243,-151.0,0.00021917,2]
[372515937,1752669041253,-151.0,0.00021917,2]
[372515939,1752669041263,-151.0,0.00021917,2]
[372515941,1752669041273,-151.0,0.00021917,2]
[372515943,1752669041284,-151.0,0.00021917,2]
[372515945,1752669041294,-151.0,0.00021917,2]
[372515947,1752669041304,-151.0,0.00021917,2]
[372515949,1752669041314,-151.0,0.00021917,2]
[372515951,1752669041323,-151.0,0.00021917,2]
[372515953,1752669041333,-151.0,0.00021917,2]
[372515955,1752669041342,-274.06717,0.00021917,2]
[372515957,1752669041352,-151.0,0.00021917,2]
[372515959,1752669041361,-151.0,0.00021917,2]
[372515961,1752669041371,-151.0,0.00021917,2]
[372515963,1752669041381,-151.0,0.00021917,2]
[372515965,1752669041391,-151.0,0.00021917,2]
[372515967,1752669041401,-151.0,0.00021917,2]
[372515969,1752669041410,-151.0,0.00021917,2]
[372515971,1752669041420,-151.0,0.00021917,2]
[372515974,1752669041430,-151.0,0.00021917,2]
[372515976,1752669041441,-151.0,0.00021917,2]
[372515978,1752669041451,-151.0,0.00021917,2]
[372515980,1752669041460,-151.0,0.00021917,2]
[372515982,1752669041470,-151.0,0.00021917,2]
[372515984,1752669041479,-151.0,0.00021917,2]
[372515986,1752669041489,-272.440512,0.00021917,2]
[372515988,1752669041499,-151.0,0.00021917,2]
[372515990,1752669041508,-151.0,0.00021917,2]
[372515992,1752669041518,-151.0,0.00021917,2]
[372515994,1752669041527,-151.0,0.00021917,2]
[372515996,1752669041537,-151.0,0.00021917,2]
[372515998,1752669041546,-151.0,0.00021917,2]
[372516000,1752669041556,-151.0,0.00021917,2]
[372516002,1752669041565,-151.0,0.00021917,2]
[372516004,1752669041575,-151.0,0.00021917,2]
[372516006,1752669041586,-151.0,0.00021917,2]
[372516008,1752669041597,-151.0,0.00021917,2]